[Event "Titled Tuesday Blitz July 4 Early 2023"]
[White "Soham Kamotra"]
[Black "Grossboss19"]
[WhiteFideId "46647490"]
[WhiteElo "2641"]
[BlackElo "2451"]
[Result "1/2-1/2"]
[Round "9"]
[TimeControl "180+2"]
[Date "2023.07.04"]
[WhiteClock "0:00:36"]
[BlackClock "0:00:15"]
[Board "55"]

1. d4 {[%clk 0:02:32]}  Nf6 {[%clk 0:02:59]} 2. Nc3 {[%clk 0:02:32]}  d5 {[%clk 0:02:56]} 3. Bf4 {[%clk 0:02:30]}  e6 {[%clk 0:02:50]} 4. Nb5 {[%clk 0:02:29]}  Na6 {[%clk 0:02:49]} 5. e3 {[%clk 0:02:29]}  c6 {[%clk 0:02:45]} 6. Nc3 {[%clk 0:02:28]}  Bd6 {[%clk 0:02:43]} 7. Bxd6 {[%clk 0:02:25]}  Qxd6 {[%clk 0:02:44]} 8. Bxa6 {[%clk 0:02:25]}  bxa6 {[%clk 0:02:43]} 9. Nf3 {[%clk 0:02:26]}  O-O {[%clk 0:02:42]} 10. O-O {[%clk 0:02:25]}  c5 {[%clk 0:02:40]} 11. dxc5 {[%clk 0:02:23]}  Qxc5 {[%clk 0:02:41]} 12. Qd4 {[%clk 0:02:23]}  Qxd4 {[%clk 0:02:39]} 13. exd4 {[%clk 0:02:21]}  Bd7 {[%clk 0:02:37]} 14. Ne5 {[%clk 0:02:20]}  Rab8 {[%clk 0:02:36]} 15. Rab1 {[%clk 0:02:12]}  Rfc8 {[%clk 0:02:34]} 16. Rfe1 {[%clk 0:02:07]}  Bb5 {[%clk 0:02:28]} 17. Rbc1 {[%clk 0:01:48]}  Be8 {[%clk 0:02:20]} 18. Nd3 {[%clk 0:01:43]}  a5 {[%clk 0:02:13]} 19. Rb1 {[%clk 0:01:32]}  Bb5 {[%clk 0:01:53]} 20. Nxb5 {[%clk 0:01:30]}  Rxb5 {[%clk 0:01:52]} 21. Nc5 {[%clk 0:01:28]}  Rc7 {[%clk 0:01:48]} 22. a4 {[%clk 0:01:02]}  Rb6 {[%clk 0:01:36]} 23. c3 {[%clk 0:01:02]}  Nd7 {[%clk 0:01:34]} 24. b4 {[%clk 0:01:02]}  g6 {[%clk 0:01:18]} 25. f4 {[%clk 0:00:56]}  axb4 {[%clk 0:00:44]} 26. cxb4 {[%clk 0:00:55]}  Kf8 {[%clk 0:00:30]} 27. Kf2 {[%clk 0:00:51]}  Ke7 {[%clk 0:00:29]} 28. Ke3 {[%clk 0:00:51]}  Kd6 {[%clk 0:00:27]} 29. Rec1 {[%clk 0:00:48]}  a5 {[%clk 0:00:25]} 30. Nxd7 {[%clk 0:00:42]}  Rxc1 {[%clk 0:00:19]} 31. Rxc1 {[%clk 0:00:41]}  Kxd7 {[%clk 0:00:19]} 32. b5 {[%clk 0:00:41]}  Rb7 {[%clk 0:00:19]} 33. Rc6 {[%clk 0:00:26]}  Rc7 {[%clk 0:00:16]} 34. Rxc7+ {[%clk 0:00:17]}  Kxc7 {[%clk 0:00:16]} 35. Kf3 {[%clk 0:00:16]}  h6 {[%clk 0:00:14]} 36. g4 {[%clk 0:00:15]}  Kd6 {[%clk 0:00:14]} 37. Ke3 {[%clk 0:00:13]}  Kc7 {[%clk 0:00:14]} 38. Kd3 {[%clk 0:00:13]}  Kd6 {[%clk 0:00:14]} 39. Kd2 {[%clk 0:00:13]}  Kc7 {[%clk 0:00:14]} 40. Ke3 {[%clk 0:00:14]}  Kd6 {[%clk 0:00:10]} 41. Kf3 {[%clk 0:00:14]}  Kc7 {[%clk 0:00:11]} 42. f5 {[%clk 0:00:14]}  g5 {[%clk 0:00:09]} 43. h4 {[%clk 0:00:11]}  Kd6 {[%clk 0:00:08]} 44. Ke3 {[%clk 0:00:09]}  Kc7 {[%clk 0:00:08]} 45. f6 {[%clk 0:00:03]}  Kb6 {[%clk 0:00:08]} 46. Kf3 {[%clk 0:00:03]}  Kc7 {[%clk 0:00:07]} 47. Kf2 {[%clk 0:00:03]}  Kd6 {[%clk 0:00:08]} 48. Ke1 {[%clk 0:00:03]}  Kc7 {[%clk 0:00:08]} 49. Kd2 {[%clk 0:00:03]}  Kb6 {[%clk 0:00:08]} 50. Kd3 {[%clk 0:00:04]}  Kc7 {[%clk 0:00:08]} 51. Ke3 {[%clk 0:00:04]}  Kb6 {[%clk 0:00:08]} 52. Kf3 {[%clk 0:00:04]}  Kc7 {[%clk 0:00:08]} 53. Kg3 {[%clk 0:00:05]}  Kb6 {[%clk 0:00:08]} 54. Kh3 {[%clk 0:00:06]}  Kc7 {[%clk 0:00:08]} 55. Kg2 {[%clk 0:00:07]}  Kb6 {[%clk 0:00:08]} 56. Kh2 {[%clk 0:00:08]}  Kc7 {[%clk 0:00:08]} 57. Kg2 {[%clk 0:00:09]}  Kb6 {[%clk 0:00:08]} 58. Kg1 {[%clk 0:00:10]}  Kc7 {[%clk 0:00:09]} 59. Kh1 {[%clk 0:00:11]}  Kb6 {[%clk 0:00:09]} 60. Kg2 {[%clk 0:00:11]}  Kc7 {[%clk 0:00:10]} 61. hxg5 {[%clk 0:00:12]}  hxg5 {[%clk 0:00:09]} 62. Kf3 {[%clk 0:00:13]}  Kb6 {[%clk 0:00:09]} 63. Ke3 {[%clk 0:00:13]}  Kc7 {[%clk 0:00:10]} 64. Kd3 {[%clk 0:00:14]}  Kb6 {[%clk 0:00:11]} 65. Kc3 {[%clk 0:00:15]}  Kc7 {[%clk 0:00:11]} 66. Kb3 {[%clk 0:00:16]}  Kb6 {[%clk 0:00:12]} 67. Kc2 {[%clk 0:00:17]}  Kc7 {[%clk 0:00:13]} 68. Kb2 {[%clk 0:00:17]}  Kb7 {[%clk 0:00:14]} 69. Ka1 {[%clk 0:00:18]}  Kb6 {[%clk 0:00:15]} 70. Ka2 {[%clk 0:00:19]}  Kc7 {[%clk 0:00:16]} 71. Ka3 {[%clk 0:00:20]}  Kb7 {[%clk 0:00:17]} 72. Kb2 {[%clk 0:00:21]}  Kb6 {[%clk 0:00:17]} 73. Kc2 {[%clk 0:00:22]}  Kc7 {[%clk 0:00:18]} 74. Kc1 {[%clk 0:00:23]}  Kb7 {[%clk 0:00:19]} 75. Kd1 {[%clk 0:00:24]}  Kb6 {[%clk 0:00:20]} 76. Ke1 {[%clk 0:00:25]}  Kc7 {[%clk 0:00:20]} 77. Kf1 {[%clk 0:00:26]}  Kd6 {[%clk 0:00:17]} 78. Kg1 {[%clk 0:00:26]}  Kc7 {[%clk 0:00:15]} 79. Kg2 {[%clk 0:00:27]}  Kb6 {[%clk 0:00:15]} 80. Kg3 {[%clk 0:00:28]}  Kc7 {[%clk 0:00:16]} 81. Kf3 {[%clk 0:00:29]}  Kb6 {[%clk 0:00:17]} 82. Ke3 {[%clk 0:00:30]}  Kc7 {[%clk 0:00:17]} 83. Kd3 {[%clk 0:00:31]}  Kb7 {[%clk 0:00:18]} 84. Kc3 {[%clk 0:00:32]}  Kb6 {[%clk 0:00:13]} 85. Kb3 {[%clk 0:00:33]}  Kc7 {[%clk 0:00:13]} 86. Ka3 {[%clk 0:00:34]}  Kb6 {[%clk 0:00:14]} 87. Ka2 {[%clk 0:00:35]}  Kc7 {[%clk 0:00:15]} 88. Kb2 {[%clk 0:00:35]}  Kb6 {[%clk 0:00:15]} 89. Kc2 {[%clk 0:00:36]} 1/2-1/2


[Site "https://www.chess.com"]

[Event "Titled Tuesday Blitz July 4 Early 2023"]
[White "Komov, Roman"]
[Black "Zia, Tahsin Tajwar"]
[WhiteFideId "24175714"]
[BlackFideId "10211888"]
[WhiteElo "2641"]
[BlackElo "2446"]
[Result "1-0"]
[Round "9"]
[TimeControl "180+2"]
[Date "2023.07.04"]
[WhiteClock "0:00:10"]
[BlackClock "0:00:01"]
[Board "56"]

1. e4 {[%clk 0:02:59]}  c6 {[%clk 0:02:57]} 2. d4 {[%clk 0:02:59]}  d5 {[%clk 0:02:54]} 3. Nc3 {[%clk 0:03:00]}  a6 {[%clk 0:02:54]} 4. Nf3 {[%clk 0:02:57]}  Bg4 {[%clk 0:02:54]} 5. e5 {[%clk 0:02:53]}  e6 {[%clk 0:02:53]} 6. h3 {[%clk 0:02:53]}  Bxf3 {[%clk 0:02:52]} 7. Qxf3 {[%clk 0:02:54]}  c5 {[%clk 0:02:52]} 8. dxc5 {[%clk 0:02:48]}  Nc6 {[%clk 0:02:49]} 9. Bf4 {[%clk 0:02:48]}  Bxc5 {[%clk 0:02:40]} 10. Qg3 {[%clk 0:02:39]}  g6 {[%clk 0:02:37]} 11. Bd3 {[%clk 0:02:33]}  Qc7 {[%clk 0:02:29]} 12. O-O {[%clk 0:02:29]}  h6 {[%clk 0:02:24]} 13. Rfe1 {[%clk 0:02:17]}  Nge7 {[%clk 0:02:16]} 14. Rad1 {[%clk 0:02:08]}  g5 {[%clk 0:02:09]} 15. Bc1 {[%clk 0:02:08]}  Bd4 {[%clk 0:02:07]} 16. Bf1 {[%clk 0:01:53]}  Bxe5 {[%clk 0:02:04]} 17. Qf3 {[%clk 0:01:53]}  f5 {[%clk 0:01:49]} 18. Qh5+ {[%clk 0:01:52]}  Kd7 {[%clk 0:01:45]} 19. Na4 {[%clk 0:01:34]}  Qa5 {[%clk 0:01:34]} 20. b3 {[%clk 0:01:34]}  Raf8 {[%clk 0:00:55]} 21. Be3 {[%clk 0:01:28]}  f4 {[%clk 0:00:53]} 22. Bb6 {[%clk 0:01:27]}  Qb4 {[%clk 0:00:49]} 23. Bc5 {[%clk 0:01:08]}  Qa5 {[%clk 0:00:48]} 24. Bb6 {[%clk 0:00:47]}  Qb4 {[%clk 0:00:48]} 25. Bc5 {[%clk 0:00:29]}  Qa5 {[%clk 0:00:36]} 26. a3 {[%clk 0:00:29]}  Bc7 {[%clk 0:00:15]} 27. Qg4 {[%clk 0:00:28]}  Rf5 {[%clk 0:00:13]} 28. Bd3 {[%clk 0:00:18]}  h5 {[%clk 0:00:12]} 29. Qf3 {[%clk 0:00:18]}  Re5 {[%clk 0:00:08]} 30. Rxe5 {[%clk 0:00:16]}  Nxe5 {[%clk 0:00:09]} 31. Qe2 {[%clk 0:00:17]}  Nxd3 {[%clk 0:00:09]} 32. cxd3 {[%clk 0:00:14]}  b5 {[%clk 0:00:05]} 33. Bb4 {[%clk 0:00:14]}  Qxb4 {[%clk 0:00:03]} 34. axb4 {[%clk 0:00:15]}  bxa4 {[%clk 0:00:04]} 35. bxa4 {[%clk 0:00:16]}  Rb8 {[%clk 0:00:04]} 36. Re1 {[%clk 0:00:16]}  Rb6 {[%clk 0:00:04]} 37. d4 {[%clk 0:00:11]}  Nf5 {[%clk 0:00:04]} 38. a5 {[%clk 0:00:10]}  Rc6 {[%clk 0:00:03]} 39. b5 {[%clk 0:00:10]}  axb5 {[%clk 0:00:04]} 40. Qxb5 {[%clk 0:00:11]}  Nxd4 {[%clk 0:00:05]} 41. Qa4 {[%clk 0:00:12]}  Nf5 {[%clk 0:00:02]} 42. Rxe6 {[%clk 0:00:11]}  Kxe6 {[%clk 0:00:02]} 43. Qxc6+ {[%clk 0:00:11]}  Bd6 {[%clk 0:00:03]} 44. a6 {[%clk 0:00:12]}  d4 {[%clk 0:00:04]} 45. a7 {[%clk 0:00:12]}  d3 {[%clk 0:00:04]} 46. a8=Q {[%clk 0:00:11]}  d2 {[%clk 0:00:04]} 47. Qae8+ {[%clk 0:00:12]}  Ne7 {[%clk 0:00:01]} 48. Qe4+ {[%clk 0:00:10]} 1-0


[Site "https://www.chess.com"]

[Event "Titled Tuesday Blitz July 4 Early 2023"]
[White "Kononenko, Dmitry"]
[Black "Glavina, Pablo"]
[WhiteFideId "14113538"]
[BlackFideId "100234"]
[WhiteElo "2627"]
[BlackElo "2407"]
[Result "1-0"]
[Round "9"]
[TimeControl "180+2"]
[Date "2023.07.04"]
[WhiteClock "0:01:10"]
[BlackClock "0:01:08"]
[Board "59"]

1. e4 {[%clk 0:03:00]}  c6 {[%clk 0:02:58]} 2. d4 {[%clk 0:03:00]}  d5 {[%clk 0:02:59]} 3. exd5 {[%clk 0:02:58]}  cxd5 {[%clk 0:02:59]} 4. c4 {[%clk 0:02:59]}  Nf6 {[%clk 0:02:59]} 5. Nc3 {[%clk 0:02:59]}  Nc6 {[%clk 0:03:00]} 6. Nf3 {[%clk 0:03:00]}  a6 {[%clk 0:03:00]} 7. c5 {[%clk 0:02:54]}  g6 {[%clk 0:02:58]} 8. Bd3 {[%clk 0:02:47]}  Bg7 {[%clk 0:02:55]} 9. h3 {[%clk 0:02:47]}  O-O {[%clk 0:02:54]} 10. O-O {[%clk 0:02:46]}  Bf5 {[%clk 0:02:54]} 11. Re1 {[%clk 0:02:43]}  e6 {[%clk 0:02:35]} 12. Bg5 {[%clk 0:02:41]}  h6 {[%clk 0:02:30]} 13. Bh4 {[%clk 0:02:41]}  Kh8 {[%clk 0:02:21]} 14. g4 {[%clk 0:02:26]}  Bxd3 {[%clk 0:02:16]} 15. Qxd3 {[%clk 0:02:27]}  b6 {[%clk 0:02:11]} 16. Rad1 {[%clk 0:02:12]}  bxc5 {[%clk 0:01:59]} 17. dxc5 {[%clk 0:02:13]}  Qa5 {[%clk 0:01:59]} 18. Rc1 {[%clk 0:01:48]}  Nd7 {[%clk 0:01:52]} 19. a3 {[%clk 0:01:43]}  Nxc5 {[%clk 0:01:50]} 20. Qd1 {[%clk 0:01:44]}  g5 {[%clk 0:01:26]} 21. Bg3 {[%clk 0:01:41]}  Rfc8 {[%clk 0:01:21]} 22. b4 {[%clk 0:01:27]}  Qxa3 {[%clk 0:01:18]} 23. bxc5 {[%clk 0:01:27]}  Bxc3 {[%clk 0:01:17]} 24. Re3 {[%clk 0:01:24]}  d4 {[%clk 0:01:13]} 25. Nxd4 {[%clk 0:01:23]}  Nxd4 {[%clk 0:01:14]} 26. Rexc3 {[%clk 0:01:13]}  Qb4 {[%clk 0:01:08]} 27. Be5+ {[%clk 0:01:10]} 1-0


[Site "https://www.chess.com"]

[Event "Titled Tuesday Blitz July 4 Early 2023"]
[White "Mindhunter08"]
[Black "Amburgy, Ryan"]
[BlackFideId "30924820"]
[WhiteElo "2343"]
[BlackElo "2672"]
[Result "1-0"]
[Round "9"]
[TimeControl "180+2"]
[Date "2023.07.04"]
[WhiteClock "0:00:11"]
[BlackClock "0:00:16"]
[Board "62"]

1. e4 {[%clk 0:03:00]}  e5 {[%clk 0:02:59]} 2. Nf3 {[%clk 0:03:01]}  Nc6 {[%clk 0:02:59]} 3. Bc4 {[%clk 0:03:01]}  Bc5 {[%clk 0:02:59]} 4. c3 {[%clk 0:03:01]}  Nf6 {[%clk 0:02:59]} 5. d3 {[%clk 0:03:02]}  O-O {[%clk 0:02:59]} 6. O-O {[%clk 0:02:59]}  d5 {[%clk 0:02:59]} 7. exd5 {[%clk 0:03:00]}  Nxd5 {[%clk 0:03:00]} 8. a4 {[%clk 0:03:00]}  a5 {[%clk 0:03:00]} 9. Nbd2 {[%clk 0:02:57]}  Nb6 {[%clk 0:02:59]} 10. Bb3 {[%clk 0:02:18]}  Kh8 {[%clk 0:02:58]} 11. Ne4 {[%clk 0:02:04]}  Be7 {[%clk 0:02:55]} 12. Nfg5 {[%clk 0:01:49]}  Bxg5 {[%clk 0:02:17]} 13. Nxg5 {[%clk 0:01:46]}  Bf5 {[%clk 0:02:01]} 14. Nxf7+ {[%clk 0:01:40]}  Rxf7 {[%clk 0:02:02]} 15. Bxf7 {[%clk 0:01:41]}  Bxd3 {[%clk 0:02:02]} 16. Re1 {[%clk 0:01:33]}  e4 {[%clk 0:02:00]} 17. Qh5 {[%clk 0:01:27]}  Qd6 {[%clk 0:01:49]} 18. Be3 {[%clk 0:01:17]}  Rf8 {[%clk 0:01:45]} 19. Bb3 {[%clk 0:01:11]}  Nd7 {[%clk 0:01:39]} 20. Rad1 {[%clk 0:01:07]}  Nde5 {[%clk 0:01:35]} 21. Bc2 {[%clk 0:00:54]}  Qe6 {[%clk 0:01:18]} 22. Bxd3 {[%clk 0:00:46]}  Nxd3 {[%clk 0:01:19]} 23. Re2 {[%clk 0:00:47]}  Qb3 {[%clk 0:01:11]} 24. Red2 {[%clk 0:00:30]}  Qxa4 {[%clk 0:00:51]} 25. Rb1 {[%clk 0:00:14]}  Qa2 {[%clk 0:00:46]} 26. Rf1 {[%clk 0:00:14]}  Qe6 {[%clk 0:00:39]} 27. Qb5 {[%clk 0:00:14]}  Nce5 {[%clk 0:00:33]} 28. Qxb7 {[%clk 0:00:13]}  Ng4 {[%clk 0:00:22]} 29. Qxc7 {[%clk 0:00:09]}  Qf5 {[%clk 0:00:20]} 30. Qg3 {[%clk 0:00:07]}  h5 {[%clk 0:00:20]} 31. h3 {[%clk 0:00:07]}  Nge5 {[%clk 0:00:20]} 32. Bd4 {[%clk 0:00:07]}  Rf7 {[%clk 0:00:19]} 33. Bxe5 {[%clk 0:00:07]}  Qxe5 {[%clk 0:00:20]} 34. Qxe5 {[%clk 0:00:07]}  Nxe5 {[%clk 0:00:21]} 35. Re1 {[%clk 0:00:08]}  Nc4 {[%clk 0:00:21]} 36. Rd8+ {[%clk 0:00:08]}  Kh7 {[%clk 0:00:21]} 37. Rxe4 {[%clk 0:00:09]}  Nxb2 {[%clk 0:00:22]} 38. Ra8 {[%clk 0:00:09]}  a4 {[%clk 0:00:21]} 39. Re5 {[%clk 0:00:09]}  g6 {[%clk 0:00:22]} 40. Rb5 {[%clk 0:00:09]}  Nd1 {[%clk 0:00:21]} 41. Rc5 {[%clk 0:00:09]}  Nb2 {[%clk 0:00:21]} 42. Rb5 {[%clk 0:00:08]}  Nd1 {[%clk 0:00:21]} 43. c4 {[%clk 0:00:09]}  Nc3 {[%clk 0:00:21]} 44. Rbb8 {[%clk 0:00:09]}  Ne4 {[%clk 0:00:20]} 45. Rxa4 {[%clk 0:00:09]}  Nxf2 {[%clk 0:00:19]} 46. c5 {[%clk 0:00:08]}  Nd3 {[%clk 0:00:17]} 47. c6 {[%clk 0:00:08]}  Ne5 {[%clk 0:00:18]} 48. Rb7 {[%clk 0:00:08]}  Kg7 {[%clk 0:00:13]} 49. Rxf7+ {[%clk 0:00:08]}  Nxf7 {[%clk 0:00:14]} 50. c7 {[%clk 0:00:09]}  Nd6 {[%clk 0:00:15]} 51. Ra8 {[%clk 0:00:10]}  Kf6 {[%clk 0:00:15]} 52. c8=Q {[%clk 0:00:10]}  Nxc8 {[%clk 0:00:16]} 53. Rxc8 {[%clk 0:00:11]}  Kg5 {[%clk 0:00:17]} 54. Ra8 {[%clk 0:00:11]}  Kh4 {[%clk 0:00:17]} 55. Ra5 {[%clk 0:00:10]}  g5 {[%clk 0:00:15]} 56. Kh2 {[%clk 0:00:11]}  g4 {[%clk 0:00:16]} 57. g3# {[%clk 0:00:11]} 1-0


[Site "https://www.chess.com"]

[Event "Titled Tuesday Blitz July 4 Early 2023"]
[White "Matinian, Nikita"]
[Black "Sowa, Ryan"]
[WhiteFideId "24129100"]
[BlackFideId "30901693"]
[WhiteElo "2699"]
[BlackElo "2556"]
[Result "0-1"]
[Round "9"]
[TimeControl "180+2"]
[Date "2023.07.04"]
[WhiteClock "0:00:04"]
[BlackClock "0:00:23"]
[Board "63"]

1. Nf3 {[%clk 0:02:55]}  b6 {[%clk 0:02:59]} 2. g3 {[%clk 0:02:52]}  Bb7 {[%clk 0:03:00]} 3. Bg2 {[%clk 0:02:52]}  Nf6 {[%clk 0:03:00]} 4. O-O {[%clk 0:02:53]}  g6 {[%clk 0:03:01]} 5. b3 {[%clk 0:02:51]}  Bg7 {[%clk 0:03:02]} 6. Bb2 {[%clk 0:02:52]}  O-O {[%clk 0:03:02]} 7. c4 {[%clk 0:02:52]}  c5 {[%clk 0:03:01]} 8. d4 {[%clk 0:02:51]}  cxd4 {[%clk 0:03:02]} 9. Qxd4 {[%clk 0:02:50]}  d6 {[%clk 0:03:01]} 10. Nc3 {[%clk 0:02:49]}  Nbd7 {[%clk 0:03:01]} 11. Nd5 {[%clk 0:02:42]}  Bxd5 {[%clk 0:02:57]} 12. cxd5 {[%clk 0:02:42]}  Nh5 {[%clk 0:02:58]} 13. Qd2 {[%clk 0:02:42]}  Bxb2 {[%clk 0:02:59]} 14. Qxb2 {[%clk 0:02:42]}  Rc8 {[%clk 0:02:36]} 15. Nd4 {[%clk 0:02:41]}  Nb8 {[%clk 0:02:35]} 16. Rac1 {[%clk 0:02:34]}  Qd7 {[%clk 0:02:34]} 17. b4 {[%clk 0:02:29]}  Rxc1 {[%clk 0:02:22]} 18. Rxc1 {[%clk 0:02:28]}  Rc8 {[%clk 0:02:23]} 19. Rxc8+ {[%clk 0:02:15]}  Qxc8 {[%clk 0:02:24]} 20. Qc2 {[%clk 0:02:14]}  Qxc2 {[%clk 0:02:24]} 21. Nxc2 {[%clk 0:02:15]}  Nf6 {[%clk 0:02:22]} 22. Nd4 {[%clk 0:02:14]}  Kf8 {[%clk 0:02:15]} 23. f4 {[%clk 0:01:58]}  Ke8 {[%clk 0:02:12]} 24. e4 {[%clk 0:01:55]}  Kd8 {[%clk 0:01:59]} 25. h3 {[%clk 0:01:54]}  h6 {[%clk 0:01:52]} 26. Kf2 {[%clk 0:01:54]}  Kc7 {[%clk 0:01:45]} 27. Ke3 {[%clk 0:01:52]}  Kd7 {[%clk 0:01:36]} 28. Bf3 {[%clk 0:01:50]}  e6 {[%clk 0:01:35]} 29. dxe6+ {[%clk 0:01:41]}  fxe6 {[%clk 0:01:35]} 30. e5 {[%clk 0:01:38]}  dxe5 {[%clk 0:01:28]} 31. fxe5 {[%clk 0:01:39]}  Ne8 {[%clk 0:01:28]} 32. b5 {[%clk 0:01:25]}  Nc7 {[%clk 0:01:14]} 33. h4 {[%clk 0:01:25]}  Ke7 {[%clk 0:01:07]} 34. a4 {[%clk 0:01:22]}  a6 {[%clk 0:01:06]} 35. Kf4 {[%clk 0:01:11]}  axb5 {[%clk 0:01:06]} 36. axb5 {[%clk 0:01:08]}  Nd7 {[%clk 0:01:03]} 37. Be4 {[%clk 0:00:57]}  Kf7 {[%clk 0:01:02]} 38. Bc6 {[%clk 0:00:44]}  Nc5 {[%clk 0:01:00]} 39. Ke3 {[%clk 0:00:28]}  g5 {[%clk 0:00:54]} 40. h5 {[%clk 0:00:22]}  Na4 {[%clk 0:00:49]} 41. Nf3 {[%clk 0:00:19]}  Nc3 {[%clk 0:00:48]} 42. Nd4 {[%clk 0:00:19]}  Na4 {[%clk 0:00:37]} 43. Kd3 {[%clk 0:00:19]}  Nc5+ {[%clk 0:00:37]} 44. Kc4 {[%clk 0:00:19]}  Na4 {[%clk 0:00:30]} 45. Be4 {[%clk 0:00:16]}  Nc5 {[%clk 0:00:27]} 46. Bg6+ {[%clk 0:00:15]}  Ke7 {[%clk 0:00:27]} 47. Nc6+ {[%clk 0:00:13]}  Kd7 {[%clk 0:00:28]} 48. Bc2 {[%clk 0:00:10]}  Nd5 {[%clk 0:00:27]} 49. Nb8+ {[%clk 0:00:08]}  Kc7 {[%clk 0:00:27]} 50. Na6+ {[%clk 0:00:08]}  Nxa6 {[%clk 0:00:26]} 51. bxa6 {[%clk 0:00:09]}  Ne3+ {[%clk 0:00:27]} 52. Kd3 {[%clk 0:00:02]}  Nxc2 {[%clk 0:00:27]} 53. Kxc2 {[%clk 0:00:03]}  Kb8 {[%clk 0:00:27]} 54. Kb3 {[%clk 0:00:03]}  Ka7 {[%clk 0:00:28]} 55. Kc4 {[%clk 0:00:02]}  Kxa6 {[%clk 0:00:28]} 56. Kb4 {[%clk 0:00:03]}  Kb7 {[%clk 0:00:26]} 57. Kb5 {[%clk 0:00:03]}  Kc7 {[%clk 0:00:26]} 58. g4 {[%clk 0:00:02]}  Kb7 {[%clk 0:00:27]} 59. Kc4 {[%clk 0:00:02]}  Kc6 {[%clk 0:00:27]} 60. Kb4 {[%clk 0:00:01]}  Kd5 {[%clk 0:00:23]} 61. Kb5 {[%clk 0:00:01]}  Kxe5 {[%clk 0:00:24]} 62. Kxb6 {[%clk 0:00:02]}  Kf4 {[%clk 0:00:25]} 63. Kc5 {[%clk 0:00:03]}  e5 {[%clk 0:00:24]} 64. Kd6 {[%clk 0:00:04]}  e4 {[%clk 0:00:23]} 0-1


[Site "https://www.chess.com"]

[Event "Titled Tuesday Blitz July 4 Early 2023"]
[White "Fiedorek, Michal"]
[Black "Ahmad, Khagan"]
[WhiteFideId "1199528"]
[BlackFideId "13431552"]
[WhiteElo "2481"]
[BlackElo "2657"]
[Result "0-1"]
[Round "9"]
[TimeControl "180+2"]
[Date "2023.07.04"]
[WhiteClock "0:00:00"]
[BlackClock "0:00:01"]
[Board "67"]

1. e4 {[%clk 0:02:56]}  c5 {[%clk 0:02:59]} 2. Nf3 {[%clk 0:02:57]}  d6 {[%clk 0:02:59]} 3. Bb5+ {[%clk 0:02:57]}  Bd7 {[%clk 0:02:59]} 4. Bxd7+ {[%clk 0:02:57]}  Qxd7 {[%clk 0:03:00]} 5. c4 {[%clk 0:02:58]}  e5 {[%clk 0:02:59]} 6. O-O {[%clk 0:02:57]}  Be7 {[%clk 0:02:58]} 7. Nc3 {[%clk 0:02:57]}  Bd8 {[%clk 0:02:58]} 8. Ne1 {[%clk 0:02:57]}  Ne7 {[%clk 0:02:56]} 9. Nc2 {[%clk 0:02:57]}  Nbc6 {[%clk 0:02:56]} 10. d3 {[%clk 0:02:58]}  Ba5 {[%clk 0:02:54]} 11. Ne3 {[%clk 0:02:57]}  Bxc3 {[%clk 0:02:47]} 12. bxc3 {[%clk 0:02:58]}  O-O {[%clk 0:02:48]} 13. Nd5 {[%clk 0:02:54]}  Nxd5 {[%clk 0:02:44]} 14. cxd5 {[%clk 0:02:54]}  Ne7 {[%clk 0:02:45]} 15. f4 {[%clk 0:02:54]}  exf4 {[%clk 0:02:42]} 16. Bxf4 {[%clk 0:02:53]}  f5 {[%clk 0:02:37]} 17. c4 {[%clk 0:02:43]}  Ng6 {[%clk 0:02:35]} 18. Qd2 {[%clk 0:02:36]}  fxe4 {[%clk 0:02:30]} 19. dxe4 {[%clk 0:02:36]}  Nxf4 {[%clk 0:02:31]} 20. Rxf4 {[%clk 0:02:35]}  Qe7 {[%clk 0:02:16]} 21. Raf1 {[%clk 0:02:31]}  Rxf4 {[%clk 0:02:02]} 22. Qxf4 {[%clk 0:02:21]}  Rf8 {[%clk 0:01:54]} 23. Qxf8+ {[%clk 0:01:39]}  Qxf8 {[%clk 0:01:55]} 24. Rxf8+ {[%clk 0:01:39]}  Kxf8 {[%clk 0:01:56]} 25. Kf2 {[%clk 0:01:29]}  Ke7 {[%clk 0:01:54]} 26. Ke3 {[%clk 0:01:26]}  Kf6 {[%clk 0:01:51]} 27. Kf4 {[%clk 0:01:10]}  g5+ {[%clk 0:01:17]} 28. Ke3 {[%clk 0:01:09]}  Ke5 {[%clk 0:01:05]} 29. a4 {[%clk 0:01:05]}  g4 {[%clk 0:01:01]} 30. a5 {[%clk 0:01:01]}  a6 {[%clk 0:00:56]} 31. h3 {[%clk 0:00:55]}  gxh3 {[%clk 0:00:56]} 32. gxh3 {[%clk 0:00:54]}  h6 {[%clk 0:00:57]} 33. h4 {[%clk 0:00:49]}  h5 {[%clk 0:00:57]} 34. Kf3 {[%clk 0:00:46]}  Kd4 {[%clk 0:00:56]} 35. Kf4 {[%clk 0:00:46]}  Kxc4 {[%clk 0:00:52]} 36. Kf5 {[%clk 0:00:45]}  Kd4 {[%clk 0:00:44]} 37. e5 {[%clk 0:00:41]}  c4 {[%clk 0:00:43]} 38. exd6 {[%clk 0:00:35]}  c3 {[%clk 0:00:44]} 39. d7 {[%clk 0:00:35]}  c2 {[%clk 0:00:44]} 40. d8=Q {[%clk 0:00:35]}  c1=Q {[%clk 0:00:45]} 41. Qf6+ {[%clk 0:00:25]}  Kc5 {[%clk 0:00:24]} 42. Qf8+ {[%clk 0:00:17]}  Kb5 {[%clk 0:00:22]} 43. Qe8+ {[%clk 0:00:14]}  Kxa5 {[%clk 0:00:21]} 44. d6 {[%clk 0:00:14]}  Qf1+ {[%clk 0:00:15]} 45. Ke6 {[%clk 0:00:14]}  Qe2+ {[%clk 0:00:14]} 46. Kd7 {[%clk 0:00:14]}  Qb5+ {[%clk 0:00:12]} 47. Kd8 {[%clk 0:00:13]}  Qb6+ {[%clk 0:00:11]} 48. Ke7 {[%clk 0:00:14]}  Qe3+ {[%clk 0:00:11]} 49. Kf7 {[%clk 0:00:10]}  Qf4+ {[%clk 0:00:11]} 50. Ke6 {[%clk 0:00:10]}  Qe4+ {[%clk 0:00:11]} 51. Kd7 {[%clk 0:00:10]}  Qc6+ {[%clk 0:00:11]} 52. Ke7 {[%clk 0:00:10]}  Qe4+ {[%clk 0:00:11]} 53. Kd8 {[%clk 0:00:09]}  Qxh4+ {[%clk 0:00:09]} 54. Qe7 {[%clk 0:00:09]}  Qd4 {[%clk 0:00:08]} 55. d7 {[%clk 0:00:05]}  Kb6 {[%clk 0:00:03]} 56. Qe6+ {[%clk 0:00:03]}  Ka7 {[%clk 0:00:02]} 57. Ke7 {[%clk 0:00:03]}  Qg7+ {[%clk 0:00:02]} 58. Ke8 {[%clk 0:00:04]}  Qh8+ {[%clk 0:00:02]} 59. Ke7 {[%clk 0:00:04]}  Qg7+ {[%clk 0:00:03]} 60. Qf7 {[%clk 0:00:04]}  Qe5+ {[%clk 0:00:03]} 61. Kd8 {[%clk 0:00:05]}  Kb8 {[%clk 0:00:03]} 62. Qf8 {[%clk 0:00:02]}  h4 {[%clk 0:00:02]} 63. Qb4 {[%clk 0:00:00]}  Qf6+ {[%clk 0:00:01]} 0-1


[Site "https://www.chess.com"]